fUSD/lending_fUSD_20250106
["ID","MTS","AMOUNT","RATE_DAILY","PERIOD"]
[347848682,1736155847380,-500.0,0.00010999,2]
[347848683,1736155847389,-500.0,0.00010999,2]
[347848684,1736155847398,-500.0,0.00010999,2]
[347848685,1736155847406,-500.0,0.00010999,2]
[347848686,1736155847414,-500.0,0.00010999,2]
[347848687,1736155847423,-500.0,0.00010999,2]
[347848688,1736155847432,-500.0,0.00010999,2]
[347848689,1736155847441,-500.0,0.00010999,2]
[347848690,1736155847450,-500.0,0.00010999,2]
[347848691,1736155847459,-500.0,0.00010999,2]
[347848692,1736155847468,-500.0,0.00010999,2]
[347848693,1736155847477,-268.28155592,0.00010999,2]
[347848694,1736155847486,-500.0,0.00010999,2]
[347848695,1736155847495,-500.0,0.00010999,2]
[347848696,1736155847504,-503.15199419,0.00010999,2]
[347848697,1736155847513,-500.0,0.00010999,2]
[347848698,1736155847522,-501.23598134,0.00010999,2]
[347848699,1736155847531,-500.0,0.00010999,2]
[347848700,1736155847542,-500.0,0.00010999,2]
[347848701,1736155847550,-500.0,0.00010999,2]
[347848702,1736155847560,-503.32164325,0.00010999,2]
[347848703,1736155847569,-501.54527908,0.00010999,2]
[347848704,1736155847578,-500.0,0.00010999,2]
[347848705,1736155847588,-502.65867616,0.00010999,2]
[347848706,1736155847597,-500.0,0.00010999,2]
[347848707,1736155847606,-500.0,0.00010999,2]
[347848708,1736155847615,-500.0,0.00010999,2]
[347848709,1736155847624,-500.0,0.00010999,2]
[347848710,1736155847633,-242.0079043,0.00010999,2]
[347848711,1736155847642,-500.0,0.00010999,2]
[347848712,1736155847652,-500.0,0.00010999,2]
[347848713,1736155847661,-500.0,0.00010999,2]
[347848714,1736155847670,-501.0607063,0.00010999,2]
[347848715,1736155847679,-516.69952134,0.00010999,2]
[347848716,1736155847689,-307.49236273,0.00010999,2]
[347848717,1736155847698,-500.0,0.00010999,2]
[347848718,1736155847707,-340.48642219,0.00010999,2]
[347848719,1736155847716,-500.0,0.00010999,2]
[347848720,1736155847725,-503.85564257,0.00010999,2]
[347848721,1736155847735,-631.92432733,0.00010999,2]
[347848722,1736155847743,-500.0,0.00010999,2]
[347848723,1736155847753,-511.37298761,0.00010999,2]
[347848724,1736155847762,-520.86489836,0.00010999,2]
[347848725,1736155847771,-500.0,0.00010999,2]
[347848726,1736155847780,-500.0,0.00010999,2]
[347848727,1736155847789,-500.43871308,0.00010999,2]
[347848728,1736155847800,-500.0,0.00010999,2]
[347848729,1736155847809,-500.0,0.00010999,2]
[347848730,1736155847818,-503.88968478,0.00010999,2]
[347848731,1736155847827,-500.0,0.00010999,2]
[347848732,1736155847836,-531.12042523,0.00010999,2]
[347848733,1736155847846,-502.80440412,0.00010999,2]
[347848734,1736155847855,-500.0,0.00010999,2]
[347848735,1736155847864,-500.0,0.00010999,2]
[347848736,1736155847874,-500.0,0.00010999,2]
[347848737,1736155847884,-500.0,0.00010999,2]
[347848738,1736155847893,-503.72203549,0.00010999,2]
[347848739,1736155847903,-500.0,0.00010999,2]
[347848740,1736155847912,-500.0,0.00010999,2]
[347848741,1736155847921,-168.37445796,0.00010999,2]
[347848742,1736155847930,-15017.58389227,0.00010999,2]
[347848743,1736155847939,-4407544.88608723,0.00010999,3]
[347848744,1736155848264,-941.68,0.00010999,3]
[347848745,1736155848287,-788.30346052,0.00010999,2]
[347848746,1736155848320,-492.37653948,0.00010999,2]
[347848747,1736155848330,-867.51146052,0.00010999,3]
[347848748,1736155848343,-716.65956255,0.00010999,3]
[347848749,1736155848355,-544.65306812,0.00010999,3]
[347848750,1736155848442,-13253.22423378,0.00010999,3]
[347848751,1736155848454,-500.56084716,0.00010999,3]
[347848752,1736155848488,-6785.14320016,0.00010999,3]
[347848753,1736155848698,-469175.96244585,0.00010999,3]
[347848754,1736155848710,-315.41501233,0.00010999,3]
[347848755,1736155848732,-78895.90356676,0.00010999,3]
[347848756,1736155849085,-1000.0,0.00010896,2]
[347848757,1736155849095,-194.36520656,0.00010999,3]
[347848758,1736155849171,-605.4,0.00010999,3]
[347848759,1736155849186,-1028.14079624,0.00010999,3]
[347848760,1736155849206,-3695.21734289,0.00010999,3]
[347848761,1736155849219,-3893.64756549,0.00010999,3]
[347848762,1736155849231,-2636.8253352,0.00010999,3]
[347848763,1736155849243,-806.91431983,0.00010999,3]
[347848764,1736155849292,-20423.89050306,0.00010999,3]
[347848765,1736156013338,-415.27,8.374e-05,2]
[347848772,1736156163302,150.0,8e-05,3]
[347848773,1736156275692,150.0,8e-05,3]
[347848774,1736156332052,150.0,8.2e-05,3]
[347848777,1736156339859,150.0,8.4e-05,3]
[347848778,1736156454608,150.0,8.4e-05,3]
[347848780,1736156585891,150.0,8.4e-05,3]
[347848781,1736156678573,150.0,8.4e-05,3]
[347848782,1736156685250,150.0,8.4e-05,3]
[347848783,1736156689640,150.0,8.4e-05,3]
[347848784,1736156705639,150.0,8.4e-05,3]
[347848785,1736156762063,220.0,0.00012356,30]
[347848808,1736157003519,161.0,8.374e-05,30]
[347848816,1736157017370,490.98,8.219e-05,2]
[347848821,1736157031777,-150.0,9.888e-05,2]
[347848822,1736157031786,-150.0,9.888e-05,2]
[347848823,1736157031797,-150.0,9.888e-05,2]
[347848824,1736157031806,-153.84235597,9.888e-05,2]
[347848825,1736157031815,-6.02109065,9.94e-05,3]
[347848826,1736157031835,-296.25890935,9.94e-05,3]
[347848827,1736157031844,-250.0,9.981e-05,2]
[347848828,1736157031853,-300.0,9.999e-05,2]
[347848829,1736157031863,-500.0,9.999e-05,2]
[347848830,1736157031872,-500.0,9.999e-05,2]
[347848831,1736157031881,-500.0,9.999e-05,2]
[347848832,1736157031891,-277.40319844,9.999e-05,2]
[347848833,1736157031901,-1000.0,9.999e-05,2]
[347848834,1736157031910,-1028.40932468,0.0001,2]
[347848835,1736157031925,-4955.5,0.0001,2]
[347848836,1736157032045,-2300.0455413,0.0001,2]
[347848837,1736157032171,-1223.22199,0.0001,2]
[347848858,1736157037723,-500.0,9.999e-05,2]
[347848859,1736157037733,-500.0,9.999e-05,2]
[347848860,1736157037962,-500.0,9.999e-05,2]
[347848861,1736157037972,-372454.82314402,0.0001,2]
[347848862,1736157037983,-646.53,0.00010015,2]
[347848863,1736157037992,-5062.22,0.00010049,2]
[347848864,1736157038001,-274.03,0.00010082,2]
[347848865,1736157038011,-161.54,0.00010137,2]
[347848866,1736157038020,-160.47,0.00010137,2]
[347848867,1736157038029,-375.0,0.000102,5]
[347848868,1736157038039,-500.0,0.00010273,2]
[347848869,1736157038049,-500.0,0.00010273,2]
[347848870,1736157038059,-500.0,0.00010273,2]
[347848872,1736157038068,-500.0,0.00010273,2]
[347848874,1736157038077,-282.64079148,0.00010273,2]
[347848876,1736157038086,-500.0,0.00010273,2]
[347848878,1736157038095,-150.0,0.00010437,2]
[347848880,1736157038104,-490.98,0.00010472,2]
[347848882,1736157038114,-231.98464702,0.00010547,2]
[347848884,1736157038123,-500.0,0.00010547,2]
[347848885,1736157038132,-500.0,0.00010547,2]
[347848887,1736157038141,-487.52096553,0.00010547,2]
[347848889,1736157038151,-500.0,0.00010547,2]
[347848891,1736157038160,-2916.0,0.00010563,2]
[347848893,1736157038169,-500.0,0.00010821,2]
[347848895,1736157038178,-500.0,0.00010821,2]
[347848897,1736157038187,-500.0,0.00010821,2]
[347848899,1736157038195,-3000.0,0.0001089,2]
[347848901,1736157038204,-265.4728,0.00010896,2]
[347848902,1736157038213,-917.51,0.00010896,2]
[347848903,1736157038223,-3866.0009,0.00010896,2]
[347848904,1736157038232,-379.6317,0.00010896,2]
[347848906,1736157038242,-150.0,0.00010899,2]
[347848908,1736157038251,-496.5237,0.00010899,2]
[347848910,1736157038260,-504.10740946,0.000109,2]
[347848912,1736157038269,-155.76501918,0.000109,2]
[347848914,1736157038278,-7142.228,0.00010925,2]
[347848916,1736157038287,-377.957,0.00010925,2]
[347848918,1736157038296,-500.0,0.00010973,2]
[347848920,1736157038306,-500.0,0.00010973,2]
[347848922,1736157038314,-150.0,0.00010986,2]
[347848924,1736157038323,-436.55583428,0.00010994,2]
[347848926,1736157038333,-562.78,0.00010995,2]
[347848928,1736157038343,-202.40737307,0.00010995,2]
[347848930,1736157038352,-500.0,0.00010995,2]
[347848932,1736157038361,-500.0,0.00010995,2]
[347848934,1736157038370,-500.0,0.00010995,2]
[347848936,1736157038379,-500.0,0.00010995,2]
[347848938,1736157038388,-500.0,0.00010995,2]
[347848940,1736157038397,-500.0,0.00010995,2]
[347848942,1736157038406,-500.0,0.00010995,2]
[347848944,1736157038415,-500.0,0.00010995,2]
[347848946,1736157038424,-500.0,0.00010995,2]
[347848948,1736157038433,-500.0,0.00010995,2]
[347848950,1736157038442,-500.0,0.00010995,2]
[347848952,1736157038451,-500.0,0.00010995,2]
[347848953,1736157038460,-1126.88,0.00010995,2]
[347848956,1736157038470,-500.0,0.00010995,2]
[347848957,1736157038481,-500.0,0.00010995,2]
[347848959,1736157038490,-500.0,0.00010995,2]
[347848961,1736157038500,-1747.7,0.00010995,2]
[347848963,1736157038509,-500.0,0.00010995,2]
[347848966,1736157038518,-1175.95,0.00010995,2]
[347848967,1736157038528,-507.16,0.00010995,2]
[347848970,1736157038537,-500.0,0.00010995,2]
[347848971,1736157038546,-1372.98,0.00010995,2]
[347848973,1736157038555,-500.0,0.00010995,2]
[347848975,1736157038567,-500.0,0.00010995,2]
[347848978,1736157038576,-500.0,0.00010995,2]
[347848979,1736157038585,-500.0,0.00010995,2]
[347848981,1736157038594,-500.0,0.00010995,2]
[347848983,1736157038603,-763.02,0.00010995,2]
[347848986,1736157038612,-500.0,0.00010995,2]
[347848987,1736157038621,-505.46005254,0.00010995,2]
[347848989,1736157038630,-500.0,0.00010995,2]
[347848991,1736157038640,-914.97,0.00010995,2]
[347848993,1736157038649,-505.03683341,0.00010995,2]
[347848996,1736157038659,-500.0,0.00010995,2]
[347848998,1736157038668,-500.0,0.00010995,2]
[347848999,1736157038677,-645.67,0.00010995,2]
[347849002,1736157038687,-1496.3,0.00010995,2]
[347849003,1736157038696,-504.04004126,0.00010995,2]
[347849005,1736157038705,-503.60305246,0.00010995,2]
[347849007,1736157038715,-846.2,0.00010995,2]
[347849010,1736157038724,-264.75691643,0.00010995,2]
[347849011,1736157038733,-501.1266307,0.00010995,2]
[347849014,1736157038743,-500.0,0.00010995,2]
[347849015,1736157038752,-500.0,0.00010995,2]
[347849018,1736157038761,-504.00022134,0.00010995,2]
[347849020,1736157038770,-500.0,0.00010995,2]
[347849022,1736157038779,-500.0,0.00010995,2]
[347849024,1736157038789,-606.76,0.00010995,2]
[347849026,1736157038798,-621.90050864,0.00010995,2]
[347849027,1736157038807,-500.0,0.00010995,2]
[347849029,1736157038816,-503.58613376,0.00010995,2]
[347849031,1736157038825,-546.26767148,0.00010995,2]
[347849033,1736157038834,-500.0,0.00010995,2]
[347849036,1736157038843,-500.0,0.00010995,2]
[347849038,1736157038852,-496.74119348,0.00010995,2]
[347849039,1736157038862,-503.43551422,0.00010995,2]
[347849042,1736157038872,-500.0,0.00010995,2]
[347849044,1736157038881,-847.02,0.00010995,2]
[347849045,1736157038890,-500.0,0.00010995,2]
[347849047,1736157038899,-500.0,0.00010995,2]
[347849049,1736157038908,-500.0,0.00010995,2]
[347849051,1736157038917,-504.19058219,0.00010995,2]
[347849053,1736157038926,-500.0,0.00010995,2]
[347849055,1736157038935,-500.0,0.00010995,2]
[347849058,1736157038945,-907.05,0.00010995,2]
[347849060,1736157038954,-502.35962668,0.00010995,2]
[347849062,1736157038963,-589.53914236,0.00010995,2]
[347849064,1736157038973,-502.58721747,0.00010995,2]
[347849066,1736157038982,-500.0,0.00010995,2]
[347849068,1736157038991,-500.0,0.00010995,2]
[347849069,1736157039000,-1102.5,0.00010995,2]
[347849071,1736157039009,-522.06171876,0.00010995,2]
[347849073,1736157039019,-1797.54,0.00010995,2]
[347849075,1736157039028,-4017.05,0.00010995,2]
[347849077,1736157039038,-500.0,0.00010995,2]
[347849079,1736157039047,-500.0,0.00010995,2]
[347849081,1736157039056,-500.0,0.00010995,2]
[347849083,1736157039066,-614.3699279,0.00010995,2]
[347849085,1736157039075,-1147.58065,0.00010996,2]
[347849087,1736157039085,-1060.471031,0.00010996,2]
[347849089,1736157039094,-158.201752,0.00010996,2]
[347849091,1736157039103,-156.262829,0.00010996,2]
[347849093,1736157039113,-500.0,0.00010996,2]
[347849095,1736157039122,-500.0,0.00010996,2]
[347849097,1736157039131,-500.0,0.00010996,2]
[347849099,1736157039140,-510.16374201,0.00010996,2]
[347849101,1736157039150,-500.0,0.00010996,2]
[347849104,1736157039161,-500.0,0.00010996,2]
[347849105,1736157039170,-500.0,0.00010996,2]
[347849108,1736157039180,-636.03532532,0.00010996,2]
[347849109,1736157039189,-506.53288592,0.00010996,2]
[347849112,1736157039199,-500.0,0.00010996,2]
[347849113,1736157039208,-601.02416243,0.00010996,2]
[347849115,1736157039218,-500.0,0.00010996,2]
[347849118,1736157039227,-500.0,0.00010996,2]
[347849119,1736157039237,-500.0,0.00010996,2]
[347849121,1736157039246,-172.09347775,0.00010996,2]
[347849123,1736157039256,-502.78501741,0.00010996,2]
[347849125,1736157039265,-500.0,0.00010996,2]
[347849127,1736157039275,-172.58338853,0.00010996,2]
[347849129,1736157039285,-500.0,0.00010996,2]
[347849132,1736157039295,-500.0,0.00010996,2]
[347849134,1736157039307,-500.0,0.00010996,2]
[347849136,1736157039317,-500.0,0.00010996,2]
[347849138,1736157039327,-500.0,0.00010996,2]
[347849140,1736157039336,-500.0,0.00010996,2]
[347849142,1736157039347,-502.01857993,0.00010996,2]
[347849144,1736157039356,-500.0,0.00010996,2]
[347849146,1736157039365,-500.0,0.00010996,2]
[347849148,1736157039374,-296.09675034,0.00010996,2]
[347849150,1736157039383,-206.27300404,0.00010996,2]
[347849152,1736157039392,-500.0,0.00010996,2]
[347849154,1736157039401,-500.0,0.00010996,2]
[347849156,1736157039410,-505.84222083,0.00010996,2]
[347849158,1736157039420,-500.0,0.00010996,2]
[347849160,1736157039428,-500.0,0.00010996,2]
[347849162,1736157039437,-500.0,0.00010996,2]
[347849164,1736157039446,-500.0,0.00010996,2]
[347849166,1736157039456,-500.0,0.00010996,2]
[347849168,1736157039465,-500.0,0.00010996,2]
[347849170,1736157039473,-536.86,0.00010996,2]
[347849172,1736157039483,-582.76,0.00010996,2]
[347849175,1736157039492,-500.0,0.00010996,2]
[347849179,1736157039502,-563.38,0.00010996,2]
[347849182,1736157039511,-503.73121791,0.00010996,2]
[347849184,1736157039519,-500.0,0.00010996,2]
[347849188,1736157039529,-500.0,0.00010996,2]
[347849191,1736157039538,-500.0,0.00010996,2]
[347849193,1736157039547,-500.0,0.00010996,2]
[347849195,1736157039557,-500.0,0.00010996,2]
[347849199,1736157039566,-500.0,0.00010996,2]
[347849201,1736157039575,-500.0,0.00010996,2]
[347849203,1736157039584,-500.0,0.00010996,2]
[347849205,1736157039593,-500.0,0.00010996,2]
[347849207,1736157039603,-604.7,0.00010996,2]
[347849209,1736157039612,-500.0,0.00010996,2]
[347849212,1736157039621,-645.59,0.00010996,2]
[347849215,1736157039631,-500.0,0.00010996,2]
[347849218,1736157039640,-254.59,0.00010996,2]
[347849221,1736157039650,-500.0,0.00010996,2]
[347849223,1736157039660,-500.0,0.00010996,2]
[347849225,1736157039669,-500.0,0.00010996,2]
[347849228,1736157039679,-500.0,0.00010996,2]
[347849230,1736157039688,-411.47524433,0.00010996,2]
[347849232,1736157039697,-500.0,0.00010996,2]
[347849234,1736157039706,-500.0,0.00010996,2]
[347849236,1736157039715,-504.23125441,0.00010996,2]
[347849238,1736157039724,-441.39428046,0.00010996,2]
[347849240,1736157039733,-500.0,0.00010996,2]
[347849242,1736157039742,-500.0,0.00010996,2]
[347849244,1736157039751,-764.4,0.00010996,2]
[347849246,1736157039760,-503.7760981,0.00010996,2]
[347849248,1736157039769,-500.0,0.00010996,2]
[347849250,1736157039778,-504.69433204,0.00010996,2]
[347849252,1736157039788,-181.13849581,0.00010996,2]
[347849254,1736157039797,-500.0,0.00010996,2]
[347849256,1736157039809,-500.0,0.00010996,2]
[347849258,1736157039818,-503.11248164,0.00010996,2]
[347849260,1736157039829,-500.0,0.00010996,2]
[347849262,1736157039838,-562.75,0.00010996,2]
[347849264,1736157039847,-500.0,0.00010996,2]
[347849266,1736157039857,-506.77432237,0.00010996,2]
[347849268,1736157039866,-500.0,0.00010996,2]
[347849270,1736157039875,-500.0,0.00010996,2]
[347849272,1736157039886,-500.0,0.00010996,2]
[347849274,1736157039895,-505.24749686,0.00010996,2]
[347849276,1736157039905,-500.0,0.00010996,2]
[347849278,1736157039914,-502.87022393,0.00010996,2]
[347849280,1736157039923,-500.0,0.00010996,2]
[347849282,1736157039932,-500.0,0.00010996,2]
[347849284,1736157039942,-500.0,0.00010996,2]
[347849286,1736157039951,-500.0,0.00010996,2]
[347849288,1736157039961,-639.1,0.00010996,2]
[347849290,1736157039970,-500.0,0.00010996,2]
[347849292,1736157039980,-500.0,0.00010996,2]
[347849294,1736157039990,-500.0,0.00010996,2]
[347849296,1736157040000,-500.0,0.00010996,2]
[347849298,1736157040010,-500.0,0.00010996,2]
[347849300,1736157040019,-503.19120319,0.00010996,2]
[347849302,1736157040028,-500.0,0.00010996,2]
[347849304,1736157040038,-500.0,0.00010996,2]
[347849306,1736157040048,-500.0,0.00010996,2]
[347849308,1736157040059,-500.0,0.00010996,2]
[347849310,1736157040069,-500.0,0.00010996,2]
[347849312,1736157040078,-500.0,0.00010996,2]
[347849314,1736157040088,-641.89437771,0.00010996,2]
[347849316,1736157040097,-572.74185475,0.00010996,2]
[347849318,1736157040107,-500.0,0.00010996,2]
[347849319,1736157040117,-500.0,0.00010996,2]
[347849321,1736157040127,-500.0,0.00010996,2]
[347849324,1736157040137,-500.0,0.00010996,2]
[347849326,1736157040147,-506.91964728,0.00010996,2]
[347849327,1736157040156,-500.0,0.00010996,2]
[347849328,1736157040166,-500.0,0.00010996,2]
[347849329,1736157040175,-505.26483855,0.00010996,2]
[347849330,1736157040185,-500.0,0.00010996,2]
[347849331,1736157040195,-503.27162676,0.00010996,2]
[347849332,1736157040204,-509.72526887,0.00010996,2]
[347849333,1736157040213,-500.0,0.00010996,2]
[347849334,1736157040223,-500.0,0.00010996,2]
[347849335,1736157040232,-505.14952913,0.00010996,2]
[347849336,1736157040242,-500.0,0.00010996,2]
[347849337,1736157040251,-504.69567588,0.00010996,2]
[347849338,1736157040260,-504.25552189,0.00010996,2]
[347849340,1736157040270,-508.27323068,0.00010996,2]
[347849342,1736157040279,-500.0,0.00010996,2]
[347849344,1736157040289,-462.33359853,0.00010996,2]
[347849346,1736157040298,-284.00986807,0.00010996,2]
[347849348,1736157040310,-500.0,0.00010996,2]
[347849350,1736157040320,-500.0,0.00010996,2]
[347849352,1736157040329,-500.0,0.00010996,2]
[347849354,1736157040339,-500.0,0.00010996,2]
[347849356,1736157040348,-595.77,0.00010996,2]
[347849358,1736157040357,-2258.14,0.00010996,2]
[347849360,1736157040366,-500.0,0.00010996,2]
[347849362,1736157040375,-500.0,0.00010996,2]
[347849365,1736157040385,-510.00365307,0.00010996,2]
[347849366,1736157040394,-500.0,0.00010996,2]
[347849368,1736157040403,-505.15826485,0.00010996,2]
[347849370,1736157040412,-500.0,0.00010996,2]
[347849372,1736157040422,-500.0,0.00010996,2]
[347849374,1736157040431,-500.0,0.00010996,2]
[347849376,1736157040440,-500.0,0.00010996,2]
[347849378,1736157040449,-500.0,0.00010996,2]
[347849380,1736157040458,-500.0,0.00010996,2]
[347849382,1736157040467,-500.0,0.00010996,2]
[347849384,1736157040476,-500.0,0.00010996,2]
[347849386,1736157040486,-500.0,0.00010996,2]
[347849388,1736157040495,-500.0,0.00010996,2]
[347849390,1736157040504,-500.0,0.00010996,2]
[347849392,1736157040513,-500.0,0.00010996,2]
[347849394,1736157040522,-500.0,0.00010996,2]
[347849396,1736157040531,-500.0,0.00010996,2]
[347849398,1736157040540,-504.19744999,0.00010996,2]
[347849400,1736157040549,-500.0,0.00010996,2]
[347849402,1736157040559,-500.0,0.00010996,2]
[347849404,1736157040569,-500.0,0.00010996,2]
[347849406,1736157040578,-500.0,0.00010996,2]
[347849408,1736157040587,-505.85992268,0.00010996,2]
[347849410,1736157040596,-500.0,0.00010996,2]
[347849412,1736157040606,-500.0,0.00010996,2]
[347849414,1736157040615,-1175.92,0.00010996,2]
[347849416,1736157040625,-488.36753171,0.00010996,2]
[347849418,1736157040634,-500.0,0.00010996,2]
[347849420,1736157040644,-509.20755056,0.00010996,2]
[347849422,1736157040654,-504.76302848,0.00010996,2]
[347849424,1736157040663,-500.0,0.00010996,2]
[347849426,1736157040673,-500.0,0.00010996,2]
[347849428,1736157040682,-500.0,0.00010996,2]
[347849430,1736157040691,-504.51345645,0.00010996,2]
[347849432,1736157040701,-500.0,0.00010996,2]
[347849434,1736157040710,-502.04294904,0.00010996,2]
[347849436,1736157040719,-500.0,0.00010996,2]
[347849438,1736157040728,-513.66382303,0.00010996,2]
[347849440,1736157040738,-500.0,0.00010996,2]
[347849442,1736157040746,-513.6054364,0.00010996,2]
[347849444,1736157040755,-501.70973462,0.00010996,2]
[347849446,1736157040765,-500.0,0.00010996,2]
[347849447,1736157040775,-500.0,0.00010996,2]
[347849449,1736157040784,-500.58510681,0.00010996,2]
[347849452,1736157040794,-500.0,0.00010996,2]
[347849453,1736157040804,-500.0,0.00010996,2]
[347849456,1736157040813,-500.0,0.00010996,2]
[347849457,1736157040823,-500.88637861,0.00010996,2]
[347849459,1736157040832,-500.0,0.00010996,2]
[347849461,1736157040841,-508.62251411,0.00010996,2]
[347849463,1736157040850,-500.38248434,0.00010996,2]
[347849465,1736157040859,-510.50732189,0.00010996,2]
[347849467,1736157040868,-500.0,0.00010996,2]
[347849469,1736157040878,-500.0,0.00010996,2]
[347849471,1736157040887,-507.33251844,0.00010996,2]
[347849473,1736157040897,-500.0,0.00010996,2]
[347849476,1736157040907,-504.618837,0.00010996,2]
[347849477,1736157040916,-4011.45,0.00010996,2]
[347849480,1736157040926,-500.0,0.00010996,2]
[347849481,1736157040935,-500.0,0.00010996,2]
[347849483,1736157040944,-174.05183452,0.00010996,2]
[347849485,1736157040954,-500.0,0.00010996,2]
[347849488,1736157040964,-500.0,0.00010996,2]
[347849489,1736157040973,-500.0,0.00010996,2]
[347849491,1736157040982,-500.0,0.00010996,2]
[347849493,1736157040991,-501.01498938,0.00010996,2]
[347849495,1736157041001,-500.0,0.00010996,2]
[347849497,1736157041011,-500.0,0.00010996,2]
[347849499,1736157041020,-500.0,0.00010996,2]
[347849501,1736157041029,-500.0,0.00010996,2]
[347849503,1736157041038,-500.0,0.00010996,2]
[347849505,1736157041047,-500.0,0.00010996,2]
[347849507,1736157041058,-558.84650284,0.00010996,2]
[347849509,1736157041066,-602.87120593,0.00010996,2]
[347849511,1736157041076,-500.0,0.00010996,2]
[347849513,1736157041085,-508.16355658,0.00010996,2]
[347849515,1736157041094,-500.0,0.00010996,2]
[347849517,1736157041104,-500.0,0.00010996,2]
[347849519,1736157041114,-500.0,0.00010996,2]
[347849521,1736157041123,-504.25767085,0.00010996,2]
[347849523,1736157041133,-507.59509575,0.00010996,2]
[347849525,1736157041142,-454.89388196,0.00010996,2]
[347849527,1736157041152,-3328.16,0.00010996,2]
[347849529,1736157041162,-500.0,0.00010996,2]
[347849531,1736157041171,-500.0,0.00010996,2]
[347849533,1736157041180,-500.0,0.00010996,2]
[347849535,1736157041189,-567.68197646,0.00010996,2]
[347849537,1736157041200,-500.0,0.00010996,2]
[347849539,1736157041209,-500.0,0.00010996,2]
[347849541,1736157041218,-500.0,0.00010996,2]
[347849543,1736157041228,-499.18197178,0.00010996,2]
[347849545,1736157041238,-500.0,0.00010996,2]
[347849547,1736157041249,-500.0,0.00010996,2]
[347849549,1736157041258,-500.62189997,0.00010996,2]
[347849551,1736157041267,-500.0,0.00010996,2]
[347849553,1736157041277,-500.0,0.00010996,2]
[347849555,1736157041286,-643.48,0.00010996,2]
[347849557,1736157041296,-500.53353175,0.00010996,2]
[347849559,1736157041306,-631.92535049,0.00010996,2]
[347849561,1736157041316,-575.57122768,0.00010996,2]
[347849563,1736157041326,-575.29781593,0.00010996,2]
[347849565,1736157041337,-500.0,0.00010996,2]
[347849567,1736157041346,-509.37170074,0.00010996,2]
[347849569,1736157041356,-500.73460745,0.00010996,2]
[347849571,1736157041366,-500.0,0.00010996,2]
[347849573,1736157041376,-500.0,0.00010996,2]
[347849575,1736157041385,-500.0,0.00010996,2]
[347849577,1736157041394,-500.0,0.00010996,2]
[347849579,1736157041403,-501.40447644,0.00010996,2]
[347849581,1736157041413,-500.0,0.00010996,2]
[347849583,1736157041423,-500.0,0.00010996,2]
[347849585,1736157041432,-502.00703965,0.00010996,2]
[347849587,1736157041442,-500.0,0.00010996,2]
[347849589,1736157041451,-576.67,0.00010996,2]
[347849591,1736157041460,-626.51119054,0.00010996,2]
[347849593,1736157041470,-500.0,0.00010996,2]
[347849595,1736157041479,-500.0,0.00010996,2]
[347849597,1736157041492,-500.0,0.00010996,2]
[347849599,1736157041501,-504.41018421,0.00010996,2]
[347849601,1736157041510,-500.0,0.00010996,2]
[347849603,1736157041519,-500.0,0.00010996,2]
[347849605,1736157041530,-612.99690324,0.00010996,2]
[347849607,1736157041539,-500.0,0.00010996,2]
[347849609,1736157041548,-502.47876464,0.00010996,2]
[347849611,1736157041560,-500.0,0.00010996,2]
[347849613,1736157041571,-500.0,0.00010996,2]